fUSD/lending_fUSD_20241114
["ID","MTS","AMOUNT","RATE_DAILY","PERIOD"]
[342212047,1731585868159,-1439.8,0.00034607,120]
[342212048,1731585868222,-1073.46,0.00034607,120]
[342212049,1731585868281,-974.66,0.00034607,120]
[342212050,1731585868340,-2017.35,0.00034607,120]
[342212051,1731585868400,-858.59,0.00034607,120]
[342212052,1731585868460,-500.0,0.00034607,120]
[342212053,1731585868519,-498.81888062,0.00034607,120]
[342212054,1731585868578,-1439.8,0.00034607,120]
[342212055,1731585868641,-676.12,0.00034607,120]
[342212056,1731585868698,-500.0,0.00034607,120]
[342212057,1731585868754,-974.66,0.00034607,120]
[342212058,1731585868811,-1073.46,0.00034607,120]
[342212059,1731585868873,-858.67629452,0.00034607,120]
[342212060,1731585868942,-2017.35,0.00034607,120]
[342212061,1731585869006,-500.0,0.00034607,120]
[342212062,1731585869067,-1439.8,0.00034607,120]
[342212063,1731585869131,-500.0,0.00034607,120]
[342212064,1731585869198,-676.12,0.00034607,120]
[342212065,1731585869258,-1073.46,0.00034607,120]
[342212066,1731585869316,-848.94,0.00034607,120]
[342212067,1731585869375,-2017.56347733,0.00034607,120]
[342212068,1731585869440,-1439.8,0.00034607,120]
[342212069,1731585869499,-500.0,0.00034607,120]
[342212070,1731585869557,-500.0,0.00034607,120]
[342212071,1731585869620,-1073.46,0.00034607,120]
[342212072,1731585869681,-676.12,0.00034607,120]
[342212073,1731585869738,-974.66,0.00034607,120]
[342212074,1731585869791,-1201.58,0.00034607,120]
[342212075,1731585869844,-500.0,0.00034607,120]
[342212076,1731585869901,-1439.8,0.00034607,120]
[342212077,1731585869964,-500.0,0.00034607,120]
[342212078,1731585870024,-1073.46,0.00034607,120]
[342212079,1731585870080,-1201.58,0.00034607,120]
[342212080,1731585870134,-974.66,0.00034607,120]
[342212081,1731585870194,-304.53826228,0.00034607,120]
[342212082,1731585870253,-500.0,0.00034607,120]
[342212083,1731585870315,-1073.46,0.00034607,120]
[342212084,1731585870374,-676.12,0.00034607,120]
[342212085,1731585870441,-974.66,0.00034607,120]
[342212086,1731585870503,-1201.58,0.00034607,120]
[342212087,1731585870563,-1439.8,0.00034607,120]
[342212088,1731585870623,-500.0,0.00034607,120]
[342212089,1731585870686,-1073.46,0.00034607,120]
[342212090,1731585870744,-974.66,0.00034607,120]
[342212091,1731585870801,-676.12,0.00034607,120]
[342212092,1731585870858,-1439.8,0.00034607,120]
[342212093,1731585870916,-1073.46,0.00034607,120]
[342212094,1731585870977,-500.0,0.00034607,120]
[342212095,1731585871036,-676.12,0.00034607,120]
[342212096,1731585871094,-974.66,0.00034607,120]
[342212097,1731585871152,-1201.58,0.00034607,120]
[342212098,1731585871205,-1439.8,0.00034607,120]
[342212099,1731585871261,-500.0,0.00034607,120]
[342212100,1731585871317,-1073.46,0.00034607,120]
[342212101,1731585871372,-676.12,0.00034607,120]
[342212102,1731585871432,-2580.21,0.00034607,120]
[342212103,1731585871489,-1201.58,0.00034607,120]
[342212104,1731585871543,-1439.8,0.00034607,120]
[342212105,1731585871598,-500.0,0.00034607,120]
[342212106,1731585871655,-1073.46,0.00034607,120]
[342212107,1731585871709,-676.12,0.00034607,120]
[342212108,1731585871765,-2580.21,0.00034607,120]
[342212109,1731585871820,-1201.58,0.00034607,120]
[342212110,1731585871890,-2347.83,0.00034607,120]
[342212111,1731585871949,-500.0,0.00034607,120]
[342212112,1731585872009,-1439.8,0.00034607,120]
[342212113,1731585872068,-500.0,0.00034607,120]
[342212114,1731585872125,-676.12,0.00034607,120]
[342212115,1731585872195,-2580.21,0.00034607,120]
[342212116,1731585872265,-500.0,0.00034607,120]
[342212117,1731585872326,-1201.58,0.00034607,120]
[342212118,1731585872388,-2347.83,0.00034607,120]
[342212119,1731585872448,-1439.8,0.00034607,120]
[342212120,1731585872507,-1073.46,0.00034607,120]
[342212121,1731585872562,-500.0,0.00034607,120]
[342212122,1731585872618,-676.12,0.00034607,120]
[342212123,1731585872671,-500.0,0.00034607,120]
[342212124,1731585872725,-2580.21,0.00034607,120]
[342212125,1731585872779,-1201.58,0.00034607,120]
[342212126,1731585872833,-2347.83,0.00034607,120]
[342212127,1731585872891,-1073.46,0.00034607,120]
[342212128,1731585872953,-1439.8,0.00034607,120]
[342212129,1731585873015,-2172.49,0.00034607,120]
[342212130,1731585873078,-676.12,0.00034607,120]
[342212131,1731585873156,-500.0,0.00034607,120]
[342212132,1731585873222,-500.0,0.00034607,120]
[342212133,1731585873285,-500.0,0.00034607,120]
[342212134,1731585873348,-2580.21,0.00034607,120]
[342212135,1731585873413,-500.0,0.00034607,120]
[342212136,1731585873482,-1073.46,0.00034607,120]
[342212137,1731585873544,-1439.8,0.00034607,120]
[342212138,1731585873603,-1201.58,0.00034607,120]
[342212139,1731585873889,-2172.49,0.00034607,120]
[342212140,1731585873950,-676.12,0.00034607,120]
[342212141,1731585874009,-500.0,0.00034607,120]
[342212142,1731585874067,-500.0,0.00034607,120]
[342212143,1731585874120,-500.0,0.00034607,120]
[342212144,1731585874181,-2580.21,0.00034607,120]
[342212145,1731585874244,-500.0,0.00034607,120]
[342212146,1731585874308,-1073.46,0.00034607,120]
[342212147,1731585874367,-1201.58,0.00034607,120]
[342212148,1731585874429,-2347.83,0.00034607,120]
[342212149,1731585874489,-2172.49,0.00034607,120]
[342212150,1731585874547,-676.12,0.00034607,120]
[342212151,1731585874603,-500.0,0.00034607,120]
[342212152,1731585874658,-500.0,0.00034607,120]
[342212153,1731585874717,-500.0,0.00034607,120]
[342212154,1731585874773,-2580.21,0.00034607,120]
[342212155,1731585874827,-1440.00230455,0.00034607,120]
[342212156,1731585874880,-2347.83,0.00034607,120]
[342212157,1731585874945,-500.0,0.00034607,120]
[342212158,1731585875006,-1201.58,0.00034607,120]
[342212159,1731585875065,-1073.66636289,0.00034607,120]
[342212160,1731585875120,-2172.49,0.00034607,120]
[342212161,1731585875177,-676.12,0.00034607,120]
[342212162,1731585875236,-500.0,0.00034607,120]
[342212163,1731585875294,-500.0,0.00034607,120]
[342212164,1731585875351,-500.0,0.00034607,120]
[342212165,1731585875412,-2580.21,0.00034607,120]
[342212166,1731585875470,-2347.83,0.00034607,120]
[342212167,1731585875529,-500.0,0.00034607,120]
[342212168,1731585875586,-500.0,0.00034607,120]
[342212169,1731585875645,-1201.58,0.00034607,120]
[342212170,1731585875701,-676.12,0.00034607,120]
[342212171,1731585875758,-500.0,0.00034607,120]
[342212172,1731585875815,-500.0,0.00034607,120]
[342212173,1731585875869,-2580.21,0.00034607,120]
[342212174,1731585875923,-3792.75,0.00034607,120]
[342212175,1731585875980,-500.0,0.00034607,120]
[342212176,1731585876034,-2347.83,0.00034607,120]
[342212177,1731585876088,-500.0,0.00034607,120]
[342212178,1731585876143,-1201.58,0.00034607,120]
[342212179,1731585876195,-500.0,0.00034607,120]
[342212180,1731585876247,-676.12,0.00034607,120]
[342212181,1731585876300,-500.0,0.00034607,120]
[342212182,1731585876353,-3792.75,0.00034607,120]
[342212183,1731585876405,-500.0,0.00034607,120]
[342212184,1731585876459,-2580.21,0.00034607,120]
[342212185,1731585876513,-2172.49,0.00034607,120]
[342212186,1731585876567,-2347.83,0.00034607,120]
[342212187,1731585876620,-500.0,0.00034607,120]
[342212188,1731585876675,-500.0,0.00034607,120]
[342212189,1731585876732,-676.12,0.00034607,120]
[342212190,1731585876788,-2580.43218932,0.00034607,120]
[342212191,1731585876843,-500.0,0.00034607,120]
[342212192,1731585876898,-1201.58,0.00034607,120]
[342212193,1731585876957,-500.0,0.00034607,120]
[342212194,1731585877018,-3792.75,0.00034607,120]
[342212195,1731585877077,-1528.72,0.00034607,120]
[342212196,1731585877135,-2172.49,0.00034607,120]
[342212197,1731585877197,-2347.83,0.00034607,120]
[342212198,1731585877258,-500.0,0.00034607,120]
[342212199,1731585877318,-500.0,0.00034607,120]
[342212200,1731585877378,-676.12,0.00034607,120]
[342212201,1731585877438,-3792.75,0.00034607,120]
[342212202,1731585877496,-500.0,0.00034607,120]
[342212203,1731585877554,-500.0,0.00034607,120]
[342212204,1731585877611,-1528.72,0.00034607,120]
[342212205,1731585877671,-2172.49,0.00034607,120]
[342212206,1731585877731,-848.94,0.00034607,120]
[342212207,1731585877789,-2347.83,0.00034607,120]
[342212208,1731585877848,-500.0,0.00034607,120]
[342212209,1731585877906,-1057.03,0.00034607,120]
[342212210,1731585877969,-676.12,0.00034607,120]
[342212211,1731585878030,-3792.75,0.00034607,120]
[342212212,1731585878093,-500.0,0.00034607,120]
[342212213,1731585878162,-500.0,0.00034607,120]
[342212214,1731585878223,-500.0,0.00034607,120]
[342212215,1731585878281,-99223.59,0.00034607,120]
[342212216,1731585878339,-1201.58,0.00034607,120]
[342212217,1731585878398,-1528.72,0.00034607,120]
[342212218,1731585878453,-2172.49,0.00034607,120]
[342212219,1731585878509,-2347.83,0.00034607,120]
[342212220,1731585878564,-848.94,0.00034607,120]
[342212221,1731585878618,-212.72693986,0.00034607,120]
[342212222,1731585878670,-1057.03,0.00034607,120]
[342212223,1731585878723,-676.12,0.00034607,120]
[342212224,1731585878775,-500.0,0.00034607,120]
[342212225,1731585878826,-3792.75,0.00034607,120]
[342212226,1731585878876,-500.0,0.00034607,120]
[342212227,1731585878931,-500.0,0.00034607,120]
[342212228,1731585878988,-2172.49,0.00034607,120]
[342212229,1731585879045,-99223.59,0.00034607,120]
[342212230,1731585879101,-1201.58,0.00034607,120]
[342212231,1731585879156,-1057.03,0.00034607,120]
[342212232,1731585879212,-848.94,0.00034607,120]
[342212233,1731585879271,-676.12,0.00034607,120]
[342212234,1731585879330,-500.0,0.00034607,120]
[342212235,1731585879397,-3792.75,0.00034607,120]
[342212236,1731585879458,-500.0,0.00034607,120]
[342212237,1731585879521,-500.0,0.00034607,120]
[342212238,1731585879584,-443.29000467,0.00034607,120]
[342212239,1731585879640,-500.0,0.00034607,120]
[342212240,1731585879911,-99223.59,0.00034607,120]
[342212241,1731585879977,-2172.49,0.00034607,120]
[342212242,1731585880035,-1201.58,0.00034607,120]
[342212243,1731585880091,-1057.03,0.00034607,120]
[342212244,1731585880147,-848.94,0.00034607,120]
[342212245,1731585880202,-1528.72,0.00034607,120]
[342212246,1731585880260,-676.12,0.00034607,120]
[342212247,1731585880320,-500.0,0.00034607,120]
[342212248,1731585880380,-2347.83,0.00034607,120]
[342212249,1731585880446,-500.0,0.00034607,120]
[342212250,1731585880509,-3792.75,0.00034607,120]
[342212251,1731585880571,-500.0,0.00034607,120]
[342212252,1731585880634,-99223.59,0.00034607,120]
[342212253,1731585880698,-2172.49,0.00034607,120]
[342212254,1731585880757,-1201.58,0.00034607,120]
[342212255,1731585880815,-500.0,0.00034607,120]
[342212256,1731585880871,-1057.03,0.00034607,120]
[342212257,1731585880928,-848.94,0.00034607,120]
[342212258,1731585880990,-1528.72,0.00034607,120]
[342212259,1731585881045,-2347.83,0.00034607,120]
[342212260,1731585881098,-676.12,0.00034607,120]
[342212261,1731585881154,-500.0,0.00034607,120]
[342212262,1731585881221,-1816.46,0.00034607,120]
[342212263,1731585881280,-500.0,0.00034607,120]
[342212264,1731585881338,-2172.49,0.00034607,120]
[342212265,1731585881396,-1201.58,0.00034607,120]
[342212266,1731585881451,-500.0,0.00034607,120]
[342212267,1731585881507,-3792.75,0.00034607,120]
[342212268,1731585881559,-616.49883087,0.00034607,120]
[342212269,1731585881613,-848.94,0.00034607,120]
[342212270,1731585881668,-1057.03,0.00034607,120]
[342212271,1731585881728,-2347.83,0.00034607,120]
[342212272,1731585881787,-500.0,0.00034607,120]
[342212273,1731585881844,-676.1275207,0.00034607,120]
[342212274,1731585881901,-1816.46,0.00034607,120]
[342212275,1731585881957,-1528.72,0.00034607,120]
[342212276,1731585882013,-500.0,0.00034607,120]
[342212277,1731585882064,-1201.58,0.00034607,120]
[342212278,1731585882117,-2172.49,0.00034607,120]
[342212279,1731585882171,-3792.75,0.00034607,120]
[342212280,1731585882224,-500.0,0.00034607,120]
[342212281,1731585882277,-1057.03,0.00034607,120]
[342212282,1731585882331,-848.94,0.00034607,120]
[342212283,1731585882389,-99223.59,0.00034607,120]
[342212284,1731585882453,-500.0,0.00034607,120]
[342212285,1731585882511,-2347.83,0.00034607,120]
[342212286,1731585882566,-1816.46,0.00034607,120]
[342212287,1731585882622,-1528.72,0.00034607,120]
[342212288,1731585882678,-2172.49,0.00034607,120]
[342212289,1731585882734,-1201.58,0.00034607,120]
[342212290,1731585882790,-500.0,0.00034607,120]
[342212291,1731585882846,-3792.93338796,0.00034607,120]
[342212292,1731585882903,-500.0,0.00034607,120]
[342212293,1731585882962,-1057.03,0.00034607,120]
[342212294,1731585883020,-848.94,0.00034607,120]
[342212295,1731585883077,-99223.59,0.00034607,120]
[342212296,1731585883133,-2347.83,0.00034607,120]
[342212297,1731585883188,-1816.46,0.00034607,120]
[342212298,1731585883242,-500.0,0.00034607,120]
[342212299,1731585883293,-1528.72,0.00034607,120]
[342212300,1731585883344,-1201.58,0.00034607,120]
[342212301,1731585883400,-2172.49,0.00034607,120]
[342212302,1731585883454,-500.0,0.00034607,120]
[342212303,1731585883509,-848.94,0.00034607,120]
[342212304,1731585883568,-500.0,0.00034607,120]
[342212305,1731585883625,-1057.03,0.00034607,120]
[342212306,1731585883683,-99223.59,0.00034607,120]
[342212307,1731585883740,-2347.83,0.00034607,120]
[342212308,1731585883798,-1816.46,0.00034607,120]
[342212309,1731585883854,-500.0,0.00034607,120]
[342212310,1731585883910,-1528.72,0.00034607,120]
[342212311,1731585883971,-500.0,0.00034607,120]
[342212312,1731585884031,-500.0,0.00034607,120]
[342212313,1731585884092,-2172.49,0.00034607,120]
[342212314,1731585884153,-848.94,0.00034607,120]
[342212315,1731585884214,-1201.58,0.00034607,120]
[342212316,1731585884273,-500.0,0.00034607,120]
[342212317,1731585884331,-1057.03,0.00034607,120]
[342212318,1731585884390,-2347.83,0.00034607,120]
[342212319,1731585884450,-99223.59,0.00034607,120]
[342212320,1731585884509,-4265.48,0.00034607,120]
[342212321,1731585884568,-1816.46,0.00034607,120]
[342212322,1731585884642,-500.0,0.00034607,120]
[342212323,1731585884709,-1528.72,0.00034607,120]
[342212324,1731585884770,-500.0,0.00034607,120]
[342212325,1731585884828,-500.0,0.00034607,120]
[342212326,1731585884887,-2172.49,0.00034607,120]
[342212327,1731585884953,-500.0,0.00034607,120]
[342212328,1731585885015,-1057.03,0.00034607,120]
[342212329,1731585885076,-556.57203933,0.00034607,120]
[342212330,1731585885141,-7995.97337973,0.00034607,120]
[342212331,1731585889338,-283.01,0.00016658,30]
[342212332,1731585889429,-283.01,0.00019242,30]
[342212333,1731585889498,-283.01,0.00021826,30]
[342212334,1731585889566,-283.01,0.0002441,30]
[342212335,1731585889635,-161.156207,0.0002592,30]
[342212336,1731585889699,-283.01,0.00026994,30]
[342212337,1731585889775,-283.01,0.00029578,30]
[342212338,1731585889851,-530.0,0.00030613,30]
[342212339,1731585889911,-530.78641847,0.00032,30]
[342212340,1731585889972,-520.82509614,0.00032,30]
[342212341,1731585890031,-500.0,0.00032,30]
[342212342,1731585890091,-500.0,0.00032,30]
[342212343,1731585890148,-500.0,0.00032,30]
[342212344,1731585890205,-558.28517964,0.00032,30]
[342212345,1731585890265,-550.6153869,0.00032,30]
[342212346,1731585890325,-500.0,0.00032,30]
[342212347,1731585890392,-500.0,0.00032,30]
[342212348,1731585890455,-500.0,0.00032,30]
[342212349,1731585890514,-700.0,0.00032,30]
[342212350,1731585890569,-500.0,0.00032,30]
[342212351,1731585890623,-700.0,0.00032,30]
[342212352,1731585890990,-500.0,0.00032,30]
[342212353,1731585891050,-700.0,0.00032,30]
[342212354,1731585891101,-500.0,0.00032,30]
[342212355,1731585891156,-700.0,0.00032,30]
[342212356,1731585891213,-500.0,0.00032,30]
[342212357,1731585891269,-700.0,0.00032,30]
[342212358,1731585891324,-500.0,0.00032,30]
[342212359,1731585891379,-500.0,0.00032,30]
[342212360,1731585891435,-700.0,0.00032,30]
[342212361,1731585891490,-500.0,0.00032,30]
[342212362,1731585891544,-500.0,0.00032,30]
[342212363,1731585891603,-700.0,0.00032,30]
[342212364,1731585891661,-500.0,0.00032,30]
[342212365,1731585891719,-700.0,0.00032,30]
[342212366,1731585891773,-500.0,0.00032,30]
[342212367,1731585891828,-700.0,0.00032,30]
[342212368,1731585891883,-500.0,0.00032,30]
[342212369,1731585891940,-500.0,0.00032,30]
[342212370,1731585891993,-700.0,0.00032,30]
[342212371,1731585892050,-500.0,0.00032,30]
[342212372,1731585892107,-500.0,0.00032,30]
[342212373,1731585892163,-700.0,0.00032,30]
[342212374,1731585892219,-511.00981373,0.00032,30]
[342212375,1731585892277,-700.0,0.00032,30]
[342212376,1731585892333,-500.0,0.00032,30]
[342212377,1731585892394,-995.67225542,0.00032,30]
[342212378,1731585892457,-500.0,0.00032,30]
[342212379,1731585892515,-500.0,0.00032,30]
[342212380,1731585892571,-592.17111836,0.00032,30]
[342212381,1731585892630,-283.01,0.00032162,30]
[342212382,1731585892705,-5913.04,0.00033151,120]
[342212383,1731585892769,-2200.0,0.00033635,60]
[342212384,1731585892831,-1600.0,0.00033635,60]
[342212385,1731585892892,-500.0,0.00033909,60]
[342212386,1731585892952,-600.0,0.00033909,60]
[342212387,1731585893016,-500.0,0.00034,30]
[342212388,1731585893073,-500.0,0.00034,30]
[342212389,1731585893128,-500.0,0.00034,30]
[342212390,1731585893188,-500.0,0.00034,30]
[342212391,1731585893245,-500.0,0.00034,30]
[342212392,1731585893303,-514.70646157,0.00034,30]
[342212393,1731585893359,-500.0,0.00034,30]
[342212394,1731585893413,-500.0,0.00034,30]
[342212395,1731585893469,-935.36436272,0.00034,30]
[342212396,1731585893525,-500.0,0.00034,30]
[342212397,1731585893583,-500.0,0.00034,30]
[342212398,1731585893642,-500.0,0.00034,30]
[342212399,1731585893707,-500.0,0.00034,30]
[342212400,1731585893769,-500.0,0.00034,30]
[342212401,1731585893828,-500.0,0.00034,30]
[342212402,1731585893886,-500.0,0.00034,30]
[342212403,1731585893952,-348.57489333,0.00034,30]
[342212404,1731585894015,-700.0,0.00034,30]
[342212405,1731585894079,-500.0,0.00034,30]
[342212406,1731585894145,-700.0,0.00034,30]
[342212407,1731585894214,-500.0,0.00034,30]
[342212408,1731585894274,-700.0,0.00034,30]
[342212409,1731585894331,-500.0,0.00034,30]
[342212410,1731585894387,-500.0,0.00034,30]
[342212411,1731585894451,-700.0,0.00034,30]
[342212412,1731585894510,-500.0,0.00034,30]
[342212413,1731585894572,-700.0,0.00034,30]
[342212414,1731585894634,-500.0,0.00034,30]
[342212415,1731585894695,-700.0,0.00034,30]
[342212416,1731585894761,-500.0,0.00034,30]
[342212417,1731585894824,-500.0,0.00034,30]
[342212418,1731585894890,-500.0,0.00034,30]
[342212419,1731585894962,-700.0,0.00034,30]
[342212420,1731585895027,-500.0,0.00034,30]
[342212421,1731585895091,-500.0,0.00034,30]
[342212422,1731585895153,-700.0,0.00034,30]
[342212423,1731585895220,-500.0,0.00034,30]
[342212424,1731585895282,-500.0,0.00034,30]
[342212425,1731585895342,-700.0,0.00034,30]
[342212426,1731585895406,-500.0,0.00034,30]
[342212427,1731585895470,-500.0,0.00034,30]
[342212428,1731585895534,-700.0,0.00034,30]
[342212429,1731585895597,-500.0,0.00034,30]
[342212430,1731585895663,-500.0,0.00034,30]
[342212431,1731585895724,-700.0,0.00034,30]
[342212432,1731585895785,-700.0,0.00034,30]
[342212433,1731585895846,-500.0,0.00034,30]
[342212434,1731585895910,-700.0,0.00034,30]
[342212435,1731585895979,-500.0,0.00034,30]
[342212436,1731585896044,-500.0,0.00034,30]
[342212437,1731585896109,-500.0,0.00034,30]
[342212438,1731585896175,-385.341977,0.00034,30]
[342212439,1731585896241,-2200.0,0.00034183,60]
[342212440,1731585896308,-1600.0,0.00034183,60]
[342212441,1731585896374,-600.0,0.00034457,60]
[342212442,1731585898267,-2200.0,0.00034731,60]
[342212443,1731585898331,-1600.0,0.00034731,60]
[342212444,1731585898393,-283.01,0.00034746,120]
[342212445,1731585898458,-62820.11035595,0.00034789,39]
[342212446,1731585898520,-50178.58411985,0.00034945,45]
[342212447,1731585898585,-200.0,0.00034955,30]
[342212448,1731585898642,-8674.0,0.00035,94]
[342212449,1731585898704,-600.0,0.00035005,60]
[342212450,1731585898760,-500.0,0.00035005,60]
[342212451,1731585898818,-600.0,0.00035553,60]
[342212452,1731585898879,-411.2912806,0.00035812,30]
[342212453,1731585898941,-2200.0,0.00035827,60]
[342212454,1731585898999,-1600.0,0.00035827,60]
[342212455,1731585899060,-21717.60335056,0.00035927,120]
[342212456,1731585899119,-250.0,0.00036,30]
[342212457,1731585899180,-411.2912806,0.00036002,30]
[342212458,1731585899241,-600.0,0.00036101,60]
[342212459,1731585899300,-500.0,0.00036101,60]
[342212460,1731585899362,-411.2912806,0.00036212,30]
[342212461,1731585899425,-5000.0,0.000365,30]
[342212462,1731585899491,-411.2912806,0.00036511,30]
[342212463,1731585899555,-411.2912806,0.00036913,30]
[342212464,1731585899616,-2200.0,0.00036923,60]
[342212465,1731585899675,-1600.0,0.00036923,60]
[342212466,1731585899737,-600.0,0.00037197,60]
[342212467,1731585899796,-500.0,0.00037197,60]
[342212468,1731585899853,-10634.71064417,0.000372,103]
[342212469,1731585899913,-10634.71064416,0.000372,103]
[342212470,1731585899969,-10634.71064416,0.000372,103]
[342212471,1731585900025,-10634.71064416,0.000372,103]
[342212472,1731585900396,-10634.71064416,0.000372,103]
[342212473,1731585900480,-411.2912806,0.00037229,30]
[342212474,1731585900543,-9541.4,0.00037241,117]
[342212475,1731585900608,-283.01,0.0003733,120]
[342212476,1731585900670,-411.2912806,0.0003741,30]
[342212477,1731585900732,-21717.60335056,0.00037427,120]
[342212478,1731585900793,-411.2912806,0.00037571,30]
[342212479,1731585900855,-411.2912806,0.00037988,30]
[342212480,1731585900914,-13009.51052717,0.0003799,30]
[342212481,1731585900978,-17265.04062625,0.00038,120]
[342212482,1731585901037,-250.0,0.00038,30]
[342212483,1731585901095,-2200.0,0.00038019,60]
[342212484,1731585901156,-1600.0,0.00038019,60]
[342212485,1731585901218,-600.0,0.00038293,60]
[342212486,1731585901278,-411.2912806,0.00038319,30]
[342212487,1731585901337,-411.2912806,0.00038389,30]
[342212488,1731585901396,-3000.0,0.0003848,31]
[342212489,1731585901459,-411.2912806,0.00038849,30]
[342212490,1731585901515,-1014.04,0.00038895,33]
[342212491,1731585901573,-21717.60335056,0.00038927,120]
[342212492,1731585901632,-5000.0,0.00039,30]
[342212493,1731585901689,-10000.0,0.00039,120]
[342212494,1731585901749,-2200.0,0.00039115,60]
[342212495,1731585901806,-1600.0,0.00039115,60]
[342212496,1731585901866,-411.2912806,0.00039147,30]
[342212497,1731585901928,-411.2912806,0.00039225,30]
[342212498,1731585901997,-10000.0,0.0003925,120]
[342212499,1731585902055,-600.0,0.00039389,60]
[342212500,1731585902116,-411.2912806,0.00039456,30]
[342212501,1731585902176,-10408.8,0.00039483,117]
[342212502,1731585902240,-10000.0,0.000395,120]
[342212503,1731585902307,-5000.0,0.000395,30]
[342212504,1731585902374,-10000.0,0.0003975,120]
[342212505,1731585902436,-283.01,0.00039914,120]
[342212506,1731585902496,-5000.0,0.00039945,120]
[342212507,1731585902556,-411.2912806,0.00039976,30]
[342212508,1731585902617,-10000.0,0.0004,120]
[342212509,1731585902675,-402156.5307,0.0004,30]
[342212510,1731585902733,-17265.04062625,0.0004,120]
[342212511,1731585902793,-7500.0,0.0004,120]
[342212512,1731585902850,-108543.28698006,0.0004,120]
[342212513,1731585902906,-5000.0,0.0004,120]
[342212514,1731585902971,-76390.76556347,0.0004,120]
[342212515,1731585903043,-2089.0,0.0004,120]
[342212516,1731585903124,-2164.0,0.0004,120]
[342212517,1731585903192,-2110.0,0.0004,30]
[342212518,1731585903263,-303.15,0.0004,120]
[342212519,1731585903331,-10000.000001,0.0004,120]
[342212520,1731585903392,-505.11580322,0.0004,60]
[342212521,1731585903460,-250.0,0.0004,30]
[342212522,1731585903525,-12500.0,0.0004,120]
[342212523,1731585903589,-12500.0,0.0004,120]
[342212524,1731585903655,-12500.0,0.0004,120]
[342212525,1731585903724,-12500.0,0.0004,120]
[342212526,1731585903793,-411.2912809,0.00040186,30]
[342212527,1731585903860,-2200.0,0.00040211,60]
[342212528,1731585903930,-1600.0,0.00040211,60]
[342212529,1731585904002,-7500.0,0.0004025,120]
[342212530,1731585904075,-1014.04,0.0004034,44]
[342212531,1731585904147,-12500.0,0.00040375,120]
[342212532,1731585904225,-12500.0,0.00040375,120]
[342212533,1731585904298,-12500.0,0.00040375,120]
[342212534,1731585904373,-12500.0,0.00040375,120]
[342212535,1731585904448,-21717.60335056,0.00040427,120]
[342212536,1731585904525,-304.52224977,0.00040485,30]
[342212537,1731585904603,-600.0,0.00040485,60]
[342212538,1731585904674,-2110.0,0.000405,30]
[342212539,1731585904742,-16000.0,0.000405,120]
[342212540,1731585904812,-229888.43022439,0.000405,120]
[342212541,1731585904879,-10000.0,0.000405,120]
[342212542,1731585904950,-1027.18,0.000405,120]
[342212543,1731585905021,-1000.0,0.00040684,30]
[342212544,1731585905096,-10000.0,0.0004075,120]
[342212545,1731585905171,-12500.0,0.0004075,120]
[342212546,1731585905245,-12500.0,0.0004075,120]